fUST/lending_fUST_20250126
["ID","MTS","AMOUNT","RATE_DAILY","PERIOD"]
[350454442,1737889845183,-5811.79,0.00016575,2]
[350454443,1737889845193,-500.0,0.00016575,2]
[350454444,1737889845203,-151.0,0.00016575,2]
[350454445,1737889845213,-151.0,0.00016575,2]
[350454446,1737889845222,-1110.69,0.00016575,2]
[350454447,1737889845231,-151.0,0.00016575,2]
[350454448,1737889845241,-151.0,0.00016575,2]
[350454450,1737889845370,-1119.55,0.00016575,2]
[350454451,1737889845381,-500.0,0.00016575,2]
[350454452,1737889845391,-3311.82,0.00016575,2]
[350454453,1737889845401,-500.0,0.00016575,2]
[350454454,1737889845410,-500.0,0.00016575,2]
[350454455,1737889845420,-500.0,0.00016575,2]
[350454456,1737889845430,-500.0,0.00016575,2]
[350454457,1737889845439,-500.0,0.00016575,2]
[350454458,1737889845448,-1243.57,0.00016575,2]
[350454459,1737889845458,-500.0,0.00016575,2]
[350454460,1737889845467,-1506.25,0.00016575,2]
[350454461,1737889845476,-16360.72,0.00016575,2]
[350454462,1737889845486,-500.0,0.00016575,2]
[350454464,1737889845495,-500.0,0.00016575,2]
[350454466,1737889845504,-500.0,0.00016575,2]
[350454468,1737889845514,-1295.54,0.00016575,2]
[350454469,1737889845523,-500.0,0.00016575,2]
[350454470,1737889845532,-500.0,0.00016575,2]
[350454471,1737889845542,-2853.36,0.00016575,2]
[350454473,1737889845551,-411.273405,0.00016575,2]
[350454475,1737889845560,-411.273405,0.00016575,2]
[350454477,1737889845570,-500.0,0.00016575,2]
[350454479,1737889845579,-411.273405,0.00016575,2]
[350454481,1737889845588,-411.273405,0.00016575,2]
[350454483,1737889845597,-500.0,0.00016575,2]
[350454485,1737889845607,-215.3965244,0.000166,2]
[350454487,1737889845616,-215.3965244,0.000166,2]
[350454489,1737889845625,-215.3965244,0.000166,2]
[350454491,1737889845634,-215.3965244,0.000166,2]
[350454493,1737889845644,-215.3965244,0.000166,2]
[350454495,1737889845653,-458.5075032,0.000166,2]
[350454497,1737889845663,-420.0,0.00016699,2]
[350454499,1737889845672,-151.0,0.0001671,2]
[350454501,1737889845681,-178.103552,0.0001671,2]
[350454503,1737889845690,-1246.39,0.0001671,2]
[350454505,1737889845699,-1246.39,0.00016711,2]
[350454507,1737889845709,-1246.39,0.00016711,2]
[350454509,1737889845718,-1246.39,0.00016711,2]
[350454511,1737889845727,-151.0,0.00016712,2]
[350454513,1737889845736,-151.0,0.00016712,2]
[350454515,1737889845746,-151.0,0.00016712,2]
[350454517,1737889845755,-151.0,0.00016712,2]
[350454519,1737889845764,-151.0,0.00016712,2]
[350454521,1737889845774,-151.969105,0.00016712,2]
[350454524,1737889845784,-271.128582,0.00016712,2]
[350454526,1737889845793,-865.845529,0.00016712,2]
[350454527,1737889845803,-865.845529,0.00016712,2]
[350454528,1737889845812,-865.845529,0.00016712,2]
[350454529,1737889845821,-865.845529,0.00016712,2]
[350454530,1737889845830,-151.0,0.00016712,2]
[350454531,1737889845839,-151.0,0.00016712,2]
[350454532,1737889845849,-500.0,0.00016712,2]
[350454533,1737889845858,-500.0,0.00016712,2]
[350454534,1737889845867,-500.0,0.00016712,2]
[350454535,1737889845879,-500.0,0.00016712,2]
[350454536,1737889845888,-500.0,0.00016712,2]
[350454537,1737889845898,-500.0,0.00016712,2]
[350454538,1737889845907,-540.88,0.00016712,2]
[350454539,1737889845916,-299.83,0.00016712,2]
[350454540,1737889845925,-151.0,0.00016712,2]
[350454541,1737889845934,-175.716843,0.00016712,2]
[350454542,1737889845944,-718.16,0.00016712,2]
[350454543,1737889845953,-500.0,0.00016712,2]
[350454544,1737889845962,-151.0,0.00016712,2]
[350454545,1737889845971,-151.0,0.00016712,2]
[350454546,1737889845981,-151.0,0.00016712,2]
[350454547,1737889845990,-151.0,0.00016712,2]
[350454548,1737889845999,-500.0,0.00016712,2]
[350454549,1737889846008,-500.0,0.00016712,2]
[350454551,1737889846018,-1331.45,0.00016712,2]
[350454553,1737889846028,-704.04,0.00016712,2]
[350454555,1737889846037,-4687.41,0.00016712,2]
[350454557,1737889846047,-500.0,0.00016712,2]
[350454559,1737889846056,-699.18,0.00016712,2]
[350454561,1737889846065,-500.0,0.00016712,2]
[350454563,1737889846074,-509.58,0.00016712,2]
[350454565,1737889846083,-500.0,0.00016712,2]
[350454567,1737889846093,-1952.79,0.00016712,2]
[350454569,1737889846102,-500.0,0.00016712,2]
[350454571,1737889846112,-4250.28,0.00016712,2]
[350454574,1737889846122,-500.0,0.00016712,2]
[350454576,1737889846131,-5811.79,0.00016712,2]
[350454578,1737889846140,-500.0,0.00016712,2]
[350454580,1737889846150,-151.0,0.00016712,2]
[350454582,1737889846159,-1110.69,0.00016712,2]
[350454584,1737889846169,-151.0,0.00016712,2]
[350454586,1737889846178,-151.0,0.00016712,2]
[350454588,1737889846188,-1119.55,0.00016712,2]
[350454590,1737889846197,-500.0,0.00016712,2]
[350454592,1737889846206,-3311.82,0.00016712,2]
[350454594,1737889846215,-500.0,0.00016712,2]
[350454596,1737889846224,-500.0,0.00016712,2]
[350454598,1737889846234,-500.0,0.00016712,2]
[350454600,1737889846243,-500.0,0.00016712,2]
[350454602,1737889846252,-500.0,0.00016712,2]
[350454604,1737889846261,-1243.57,0.00016712,2]
[350454606,1737889846271,-500.0,0.00016712,2]
[350454608,1737889846280,-1506.25,0.00016712,2]
[350454610,1737889846291,-16360.72,0.00016712,2]
[350454612,1737889846300,-500.0,0.00016712,2]
[350454614,1737889846309,-500.0,0.00016712,2]
[350454616,1737889846318,-500.0,0.00016712,2]
[350454618,1737889846328,-1295.54,0.00016712,2]
[350454620,1737889846342,-296.2,0.00016712,2]
[350454622,1737889846351,-500.0,0.00016712,2]
[350454624,1737889846360,-2853.36,0.00016712,2]
[350454626,1737889846371,-411.273405,0.00016712,2]
[350454628,1737889846380,-411.273405,0.00016712,2]
[350454630,1737889846389,-500.0,0.00016712,2]
[350454632,1737889846399,-411.273405,0.00016712,2]
[350454634,1737889846408,-411.273405,0.00016712,2]
[350454636,1737889846419,-500.0,0.00016712,2]
[350454638,1737889846429,-151.0,0.0001677,2]
[350454641,1737889846439,-1200.0,0.0001677,2]
[350454643,1737889846450,-500.0,0.0001677,2]
[350454645,1737889846459,-154.2803338,0.00016779,2]
[350454647,1737889846469,-363.3304945,0.00016779,2]
[350454649,1737889846478,-152.68190368,0.0001678,2]
[350454651,1737889846487,-151.0,0.000168,2]
[350454652,1737889846497,-306.6733483,0.00016822,2]
[350454655,1737889846507,-297.92434,0.00016847,2]
[350454657,1737889846516,-1246.39,0.00016848,2]
[350454659,1737889846527,-1246.39,0.00016848,2]
[350454661,1737889846538,-1246.39,0.00016848,2]
[350454663,1737889846547,-1246.39,0.00016848,2]
[350454665,1737889846557,-1246.59,0.00016848,2]
[350454667,1737889846566,-151.0,0.00016849,2]
[350454669,1737889846575,-151.0,0.00016849,2]
[350454671,1737889846584,-151.0,0.00016849,2]
[350454673,1737889846593,-151.0,0.00016849,2]
[350454675,1737889846603,-865.845529,0.00016849,2]
[350454677,1737889846612,-865.845529,0.00016849,2]
[350454679,1737889846621,-169.497503,0.00016849,2]
[350454681,1737889846631,-500.0,0.00016849,2]
[350454683,1737889846640,-500.0,0.00016849,2]
[350454685,1737889846649,-500.0,0.00016849,2]
[350454687,1737889846659,-500.0,0.00016849,2]
[350454689,1737889846668,-500.0,0.00016849,2]
[350454691,1737889846678,-718.16,0.00016849,2]
[350454693,1737889846687,-500.0,0.00016849,2]
[350454695,1737889846696,-151.0,0.00016849,2]
[350454697,1737889846706,-151.0,0.00016849,2]
[350454699,1737889846715,-168.62644,0.00016849,2]
[350454701,1737889846725,-500.0,0.00016849,2]
[350454703,1737889846734,-500.0,0.00016849,2]
[350454705,1737889846743,-1331.45,0.00016849,2]
[350454707,1737889846753,-704.04,0.00016849,2]
[350454709,1737889846762,-4687.41,0.00016849,2]
[350454712,1737889846771,-500.0,0.00016849,2]
[350454714,1737889846781,-699.18,0.00016849,2]
[350454716,1737889846790,-500.0,0.00016849,2]
[350454718,1737889846799,-509.58,0.00016849,2]
[350454720,1737889846808,-500.0,0.00016849,2]
[350454722,1737889846817,-1952.79,0.00016849,2]
[350454724,1737889846827,-500.0,0.00016849,2]
[350454726,1737889846837,-4250.28,0.00016849,2]
[350454728,1737889846846,-500.0,0.00016849,2]
[350454730,1737889846855,-5811.79,0.00016849,2]
[350454732,1737889846865,-500.0,0.00016849,2]
[350454734,1737889846874,-1110.69,0.00016849,2]
[350454736,1737889846883,-1119.55,0.00016849,2]
[350454738,1737889846893,-500.0,0.00016849,2]
[350454740,1737889846903,-3311.82,0.00016849,2]
[350454742,1737889846912,-500.0,0.00016849,2]
[350454744,1737889846921,-500.0,0.00016849,2]
[350454746,1737889846930,-500.0,0.00016849,2]
[350454748,1737889846939,-500.0,0.00016849,2]
[350454750,1737889846948,-500.0,0.00016849,2]
[350454752,1737889846958,-1243.57,0.00016849,2]
[350454754,1737889846967,-500.0,0.00016849,2]
[350454756,1737889846977,-1506.25,0.00016849,2]
[350454758,1737889846987,-16360.72,0.00016849,2]
[350454760,1737889846996,-500.0,0.00016849,2]
[350454762,1737889847005,-500.0,0.00016849,2]
[350454764,1737889847014,-500.0,0.00016849,2]
[350454766,1737889847024,-500.0,0.00016849,2]
[350454768,1737889847033,-500.0,0.00016849,2]
[350454770,1737889847043,-290.66162351,0.00016849,2]
[350454772,1737889847053,-1295.54,0.00016849,2]
[350454774,1737889847063,-500.0,0.00016849,2]
[350454776,1737889847073,-2853.36,0.00016849,2]
[350454778,1737889847083,-411.273405,0.00016849,2]
[350454780,1737889847092,-411.273405,0.00016849,2]
[350454783,1737889847102,-500.0,0.00016849,2]
[350454785,1737889847111,-411.273405,0.00016849,2]
[350454787,1737889847121,-411.273405,0.00016849,2]
[350454789,1737889847131,-500.0,0.00016849,2]
[350454790,1737889847141,-13171.74264407,0.00016876,2]
[350454792,1737889847151,-151.0,0.00016876,2]
[350454795,1737889847161,-865.845529,0.00016876,2]
[350454797,1737889847170,-865.845529,0.00016876,2]
[350454799,1737889847180,-411.273405,0.00016876,2]
[350454801,1737889847189,-411.273405,0.00016876,2]
[350454803,1737889847198,-2000.0,0.000169,2]
[350454805,1737889847207,-2000.0,0.000169,2]
[350454807,1737889847216,-2000.0,0.000169,2]
[350454809,1737889847226,-151.0,0.000169,2]
[350454811,1737889847236,-151.0,0.000169,2]
[350454813,1737889847245,-500.0,0.00016973,2]
[350454815,1737889847254,-613.63652337,0.00016973,2]
[350454817,1737889847265,-532.35211508,0.00016973,2]
[350454819,1737889847274,-500.0,0.00016973,2]
[350454821,1737889847283,-516.73243931,0.00016973,2]
[350454823,1737889847292,-438.61048958,0.00016973,2]
[350454825,1737889847302,-500.0,0.00016973,2]
[350454827,1737889847311,-500.0,0.00016973,2]
[350454829,1737889847320,-500.0,0.00016973,2]
[350454831,1737889847331,-500.0,0.00016973,2]
[350454833,1737889847342,-268.47775281,0.00016973,2]
[350454835,1737889847351,-500.0,0.00016973,2]
[350454837,1737889847361,-500.0,0.00016973,2]
[350454839,1737889847370,-500.0,0.00016973,2]
[350454841,1737889847379,-504.56305962,0.00016973,2]
[350454843,1737889847388,-500.0,0.00016973,2]
[350454845,1737889847397,-151.0,0.00016986,2]
[350454847,1737889847407,-151.0,0.00016986,2]
[350454849,1737889847416,-151.0,0.00016986,2]
[350454851,1737889847426,-865.845529,0.00016986,2]
[350454853,1737889847435,-865.845529,0.00016986,2]
[350454855,1737889847444,-865.845529,0.00016986,2]
[350454857,1737889847453,-865.845529,0.00016986,2]
[350454859,1737889847463,-500.0,0.00016986,2]
[350454861,1737889847472,-500.0,0.00016986,2]
[350454863,1737889847482,-500.0,0.00016986,2]
[350454865,1737889847491,-500.0,0.00016986,2]
[350454867,1737889847500,-500.0,0.00016986,2]
[350454869,1737889847509,-718.16,0.00016986,2]
[350454871,1737889847519,-500.0,0.00016986,2]
[350454873,1737889847528,-151.0,0.00016986,2]
[350454875,1737889847537,-500.0,0.00016986,2]
[350454877,1737889847546,-500.0,0.00016986,2]
[350454879,1737889847555,-1331.45,0.00016986,2]
[350454881,1737889847565,-704.04,0.00016986,2]
[350454883,1737889847574,-4687.41,0.00016986,2]
[350454886,1737889847584,-500.0,0.00016986,2]
[350454887,1737889847593,-699.18,0.00016986,2]
[350454890,1737889847602,-500.0,0.00016986,2]
[350454892,1737889847611,-509.58,0.00016986,2]
[350454894,1737889847621,-500.0,0.00016986,2]
[350454896,1737889847630,-1952.79,0.00016986,2]
[350454898,1737889847639,-500.0,0.00016986,2]
[350454900,1737889847648,-4250.28,0.00016986,2]
[350454902,1737889847657,-5811.79,0.00016986,2]
[350454904,1737889847667,-500.0,0.00016986,2]
[350454906,1737889847676,-317.99426038,0.00016986,2]
[350454911,1737889847711,-1110.69,0.00016986,2]
[350454913,1737889847720,-1119.55,0.00016986,2]
[350454915,1737889847729,-500.0,0.00016986,2]
[350454917,1737889847738,-3311.82,0.00016986,2]
[350454919,1737889847747,-500.0,0.00016986,2]
[350454921,1737889847757,-500.0,0.00016986,2]
[350454923,1737889847766,-500.0,0.00016986,2]
[350454925,1737889847775,-500.0,0.00016986,2]
[350454927,1737889847784,-500.0,0.00016986,2]
[350454929,1737889847793,-1243.57,0.00016986,2]
[350454931,1737889847801,-500.0,0.00016986,2]
[350454933,1737889847810,-1506.25,0.00016986,2]
[350454935,1737889847819,-16360.72,0.00016986,2]
[350454936,1737889847828,-500.0,0.00016986,2]
[350454938,1737889847838,-500.0,0.00016986,2]
[350454940,1737889847847,-500.0,0.00016986,2]
[350454942,1737889847856,-1295.54,0.00016986,2]
[350454944,1737889847865,-500.0,0.00016986,2]
[350454946,1737889847874,-2853.36,0.00016986,2]
[350454948,1737889847883,-500.0,0.00016986,2]
[350454950,1737889847893,-411.273405,0.00016986,2]
[350454952,1737889847903,-411.273398,0.00016986,2]
[350454954,1737889847912,-500.0,0.00016986,2]
[350454956,1737889847921,-154.2803338,0.00016986,2]
[350454958,1737889847930,-154.2803338,0.00016986,2]
[350454961,1737889847940,-154.2803338,0.00016986,2]
[350454963,1737889847950,-154.2803338,0.00016986,2]
[350454965,1737889847959,-61211.75719631,0.00017,2]
[350454994,1737889848227,-348.41122115,0.00016438,2]
[350454996,1737889848237,-152.0,0.00016537,2]
[350454998,1737889848247,-430.520704,0.000166,2]
[350455000,1737889848256,-6983.70773966,0.00017,2]
[350455003,1737889848272,-352.5613876,0.00017,2]
[350455016,1737890299176,376.79,0.00010959,2]
[350455017,1737890309871,313.99,0.00010959,2]
[350455018,1737890320360,261.66,0.00010959,2]
[350455019,1737890330870,218.05,0.00010959,2]
[350455022,1737890341675,181.7,0.00010959,2]
[350455023,1737890352100,151.42,0.00010959,2]
[350455026,1737890362599,757.13,0.00010959,2]
[350455028,1737890402497,191.497873,0.00013973,2]
[350455030,1737890463637,1137.36205712,0.00019178,30]
[350455052,1737890669481,249.01668794,0.00015056,2]
[350455108,1737891032254,-234.155462,0.00015261,2]
[350455109,1737891032264,-26.07405798,0.00015415,2]
[350455567,1737891042984,-208.08140402,0.00015261,2]
[350455569,1737891042994,-208.08140402,0.00015415,2]
[350455571,1737891043004,-336.454,0.0001615,2]
[350455573,1737891043013,-555.57474984,0.00016346,2]
[350455575,1737891043023,-15.41947734,0.00016437,2]
[350455870,1737891046071,-284.58052266,0.00016437,2]
[350455871,1737891046080,-151.0,0.00016438,2]
[350455872,1737891046089,-151.0,0.00016438,2]
[350455873,1737891046100,-151.0,0.00016438,2]
[350455874,1737891046109,-165.73178395,0.00016438,2]
[350456138,1737891050233,-334.26821605,0.00016438,2]
[350456139,1737891050243,-500.0,0.00016438,2]
[350456140,1737891050252,-557.36,0.00016438,2]
[350456141,1737891050262,-500.0,0.00016438,2]
[350456142,1737891050272,-500.0,0.00016438,2]
[350456143,1737891050282,-500.0,0.00016438,2]
[350456144,1737891050291,-500.0,0.00016438,2]
[350456145,1737891050300,-500.0,0.00016438,2]
[350456146,1737891050310,-500.0,0.00016438,2]
[350456147,1737891050319,-500.0,0.00016438,2]
[350456148,1737891050328,-568.55,0.00016438,2]
[350456149,1737891050338,-500.0,0.00016438,2]
[350456150,1737891050347,-258.20958028,0.00016438,2]
[350456151,1737891050357,-500.0,0.00016438,2]
[350456152,1737891050367,-500.0,0.00016438,2]
[350456153,1737891050376,-500.0,0.00016438,2]
[350456154,1737891050386,-4179.8,0.00016438,2]
[350456155,1737891050395,-500.0,0.00016438,2]
[350456156,1737891050405,-500.0,0.00016438,2]
[350456157,1737891050413,-616.83,0.00016438,2]
[350456158,1737891050424,-500.0,0.00016438,2]
[350456159,1737891050434,-1701.25,0.00016438,2]
[350456160,1737891050443,-4232.21,0.00016438,2]
[350456161,1737891050452,-500.0,0.00016438,2]
[350456162,1737891050462,-500.0,0.00016438,2]
[350456163,1737891050471,-5087.71,0.00016438,2]
[350456164,1737891050481,-500.0,0.00016438,2]
[350456165,1737891050491,-973.26,0.00016438,2]
[350456166,1737891050501,-500.0,0.00016438,2]
[350456167,1737891050510,-500.0,0.00016438,2]
[350456168,1737891050521,-1029.68,0.00016438,2]
[350456169,1737891050531,-500.0,0.00016438,2]
[350456170,1737891050541,-500.0,0.00016438,2]
[350456171,1737891050550,-500.0,0.00016438,2]
[350456172,1737891050561,-1112.37,0.00016438,2]
[350456173,1737891050571,-14476.38,0.00016438,2]
[350456174,1737891050582,-500.0,0.00016438,2]
[350456175,1737891050592,-500.0,0.00016438,2]
[350456176,1737891050601,-500.0,0.00016438,2]
[350456177,1737891050611,-500.0,0.00016438,2]
[350456178,1737891050620,-2979.88,0.00016438,2]
[350456179,1737891050629,-500.0,0.00016438,2]
[350456180,1737891050639,-500.0,0.00016438,2]
[350456181,1737891050648,-500.0,0.00016438,2]
[350456182,1737891050657,-500.0,0.00016438,2]
[350456183,1737891050666,-500.0,0.00016438,2]
[350456184,1737891050675,-500.0,0.00016438,2]
[350456185,1737891050684,-1132.41,0.00016438,2]
[350456186,1737891050694,-500.0,0.00016438,2]
[350456187,1737891050703,-1513.78,0.00016438,2]
[350456188,1737891050712,-2474.49,0.00016438,2]
[350456189,1737891050722,-500.0,0.00016438,2]
[350456190,1737891050731,-500.0,0.00016438,2]
[350456191,1737891050740,-500.0,0.00016438,2]
[350456192,1737891050749,-592.36,0.00016438,2]
[350456193,1737891050759,-500.0,0.00016438,2]
[350456194,1737891050768,-1054.06,0.00016438,2]
[350456195,1737891050780,-151.0,0.00016438,2]
[350456196,1737891050789,-151.0,0.00016498,2]
[350456197,1737891050799,-151.0,0.00016498,2]
[350456198,1737891050808,-151.0,0.000165,2]
[350456199,1737891050817,-151.0,0.000165,2]
[350456200,1737891050826,-151.394815,0.000165,2]
[350456201,1737891050835,-151.0,0.000165,2]
[350456202,1737891050844,-151.0,0.000165,2]
[350456203,1737891050855,-395.0,0.00016574,2]
[350456204,1737891050864,-500.0,0.00016574,2]
[350456205,1737891050873,-385.29570008,0.00016574,2]
[350456206,1737891050882,-500.0,0.00016574,2]
[350456207,1737891050891,-500.0,0.00016574,2]
[350456208,1737891050900,-500.0,0.00016574,2]
[350456209,1737891050909,-522.03456411,0.00016574,2]
[350456210,1737891050918,-500.0,0.00016574,2]
[350456211,1737891050927,-500.0,0.00016574,2]
[350456212,1737891050936,-500.0,0.00016574,2]
[350456213,1737891050946,-500.0,0.00016574,2]
[350456214,1737891050955,-541.22123555,0.00016574,2]
[350456215,1737891050964,-151.0,0.00016575,2]
[350456216,1737891050973,-151.0,0.00016575,2]
[350456217,1737891050982,-151.0,0.00016575,2]
[350456218,1737891050991,-151.0,0.00016575,2]
[350456219,1737891051000,-151.0,0.00016575,2]
[350456220,1737891051010,-151.0,0.00016575,2]
[350456221,1737891051019,-207.855228,0.00016575,2]
[350456222,1737891051028,-414.713,0.00016575,2]
[350456223,1737891051038,-542.53193917,0.00016575,2]
[350456224,1737891051047,-557.36,0.00016575,2]
[350456225,1737891051056,-500.0,0.00016575,2]
[350456226,1737891051065,-500.0,0.00016575,2]
[350456227,1737891051074,-500.0,0.00016575,2]
[350456228,1737891051083,-500.0,0.00016575,2]
[350456229,1737891051091,-568.55,0.00016575,2]
[350456230,1737891051100,-500.0,0.00016575,2]
[350456231,1737891051110,-500.0,0.00016575,2]
[350456232,1737891051119,-500.0,0.00016575,2]
[350456233,1737891051128,-500.0,0.00016575,2]
[350456234,1737891051137,-4179.8,0.00016575,2]
[350456235,1737891051146,-500.0,0.00016575,2]
[350456236,1737891051155,-500.0,0.00016575,2]
[350456237,1737891051164,-616.83,0.00016575,2]
[350456238,1737891051173,-500.0,0.00016575,2]
[350456239,1737891051183,-1701.25,0.00016575,2]
[350456240,1737891051192,-4232.21,0.00016575,2]
[350456241,1737891051201,-500.0,0.00016575,2]
[350456242,1737891051210,-5087.71,0.00016575,2]
[350456243,1737891051219,-973.26,0.00016575,2]
[350456244,1737891051229,-500.0,0.00016575,2]
[350456245,1737891051238,-500.0,0.00016575,2]
[350456246,1737891051247,-1029.68,0.00016575,2]
[350456247,1737891051257,-500.0,0.00016575,2]
[350456248,1737891051265,-500.0,0.00016575,2]
[350456249,1737891051275,-500.0,0.00016575,2]
[350456250,1737891051283,-1112.37,0.00016575,2]
[350456251,1737891051292,-14476.38,0.00016575,2]
[350456252,1737891051301,-500.0,0.00016575,2]
[350456253,1737891051311,-500.0,0.00016575,2]
[350456254,1737891051320,-500.0,0.00016575,2]
[350456255,1737891051329,-500.0,0.00016575,2]
[350456256,1737891051338,-2979.88,0.00016575,2]
[350456257,1737891051347,-500.0,0.00016575,2]
[350456258,1737891051356,-500.0,0.00016575,2]
[350456259,1737891051365,-500.0,0.00016575,2]
[350456260,1737891051374,-500.0,0.00016575,2]
[350456261,1737891051384,-500.0,0.00016575,2]
[350456262,1737891051393,-500.0,0.00016575,2]
[350456263,1737891051403,-1132.41,0.00016575,2]
[350456264,1737891051412,-1513.78,0.00016575,2]
[350456265,1737891051421,-2474.49,0.00016575,2]
[350456266,1737891051431,-500.0,0.00016575,2]
[350456267,1737891051441,-500.0,0.00016575,2]
[350456268,1737891051451,-500.0,0.00016575,2]
[350456269,1737891051461,-1054.06,0.00016575,2]
[350456270,1737891051472,-215.3284382,0.000166,2]
[350456271,1737891051481,-177.725208,0.000166,2]
[350456272,1737891051491,-215.3965244,0.000166,2]
[350456273,1737891051500,-306.0,0.000166,2]
[350456274,1737891051509,-215.3965244,0.000166,2]
[350456275,1737891051518,-409.67179089,0.00016711,2]
[350456276,1737891051529,-151.0,0.00016712,2]
[350456277,1737891051539,-151.0,0.00016712,2]
[350456278,1737891051548,-151.0,0.00016712,2]
[350456279,1737891051559,-216.206401,0.00016712,2]
[350456280,1737891051569,-557.36,0.00016712,2]
[350456281,1737891051578,-500.0,0.00016712,2]
[350456282,1737891051587,-506.18,0.00016712,2]
[350456283,1737891051598,-500.0,0.00016712,2]
[350456284,1737891051608,-500.0,0.00016712,2]
[350456285,1737891051618,-568.55,0.00016712,2]
[350456286,1737891051626,-491.23155872,0.00016712,2]
[350456287,1737891051637,-500.0,0.00016712,2]
[350456288,1737891051646,-500.0,0.00016712,2]
[350456289,1737891051655,-500.0,0.00016712,2]
[350456290,1737891051664,-4179.8,0.00016712,2]
[350456291,1737891051673,-500.0,0.00016712,2]
[350456292,1737891051682,-500.0,0.00016712,2]
[350456293,1737891051691,-616.83,0.00016712,2]
[350456294,1737891051700,-500.0,0.00016712,2]
[350456295,1737891051709,-1701.25,0.00016712,2]
[350456296,1737891051718,-4232.21,0.00016712,2]
[350456297,1737891051728,-500.0,0.00016712,2]
[350456298,1737891051739,-5087.71,0.00016712,2]
[350456299,1737891051748,-973.26,0.00016712,2]
[350456300,1737891051757,-500.0,0.00016712,2]
[350456301,1737891051766,-1029.68,0.00016712,2]
[350456302,1737891051776,-500.0,0.00016712,2]
[350456303,1737891051787,-500.0,0.00016712,2]
[350456304,1737891051796,-500.0,0.00016712,2]
[350456305,1737891051805,-1112.37,0.00016712,2]
[350456306,1737891051815,-14476.38,0.00016712,2]
[350456307,1737891051825,-535.58,0.00016712,2]
[350456308,1737891051834,-500.0,0.00016712,2]
[350456309,1737891051843,-500.0,0.00016712,2]
[350456310,1737891051852,-462.39,0.00016712,2]
[350456311,1737891051862,-2979.88,0.00016712,2]
[350456312,1737891051871,-500.0,0.00016712,2]
[350456313,1737891051881,-500.0,0.00016712,2]
[350456314,1737891051890,-553.67,0.00016712,2]
[350456315,1737891051899,-500.0,0.00016712,2]
[350456316,1737891051908,-500.0,0.00016712,2]
[350456317,1737891051917,-500.0,0.00016712,2]
[350456318,1737891051926,-1132.41,0.00016712,2]
[350456319,1737891051935,-1513.78,0.00016712,2]
[350456320,1737891051945,-2474.49,0.00016712,2]
[350456321,1737891051954,-500.0,0.00016712,2]
[350456322,1737891051963,-500.0,0.00016712,2]
[350456323,1737891051972,-500.0,0.00016712,2]
[350456324,1737891051981,-1054.06,0.00016712,2]
[350456325,1737891051990,-215.3965244,0.000168,2]
[350456326,1737891051999,-215.3965244,0.000168,2]
[350456327,1737891052010,-215.3965244,0.000168,2]
[350456328,1737891052019,-392.0908956,0.00016829,2]
[350456329,1737891052028,-297.727,0.00016833,2]
[350456330,1737891052036,-1200.0,0.00016833,2]